fUSD/lending_fUSD_20260202
["ID","MTS","AMOUNT","RATE_DAILY","PERIOD"]
[404252491,1770005448351,-172.53,0.00017178,2]
[404252492,1770005448360,-150.0,0.00017178,2]
[404252493,1770005448370,-469.55,0.00017178,2]
[404252494,1770005448379,-1122.97,0.00017178,2]
[404252495,1770005448388,-150.0,0.00017178,2]
[404252496,1770005448399,-150.57,0.00017178,2]
[404252497,1770005448407,-172.53,0.00017178,2]
[404252498,1770005448417,-469.55,0.00017178,2]
[404252499,1770005448426,-150.0,0.00017178,2]
[404252500,1770005448435,-300.0,0.00017178,2]
[404252501,1770005448445,-150.0,0.00017178,2]
[404252502,1770005448455,-1453.14,0.00017178,2]
[404252503,1770005448464,-172.53,0.00017178,2]
[404252504,1770005448475,-469.55,0.00017178,2]
[404252505,1770005448484,-172.53,0.00017178,2]
[404252506,1770005448494,-150.0,0.00017178,2]
[404252507,1770005448503,-469.55,0.00017178,2]
[404252508,1770005448513,-172.53,0.00017178,2]
[404252509,1770005448522,-355.35,0.00017178,2]
[404252510,1770005448531,-217.32,0.00017178,2]
[404252511,1770005448541,-165.17,0.00017178,2]
[404252512,1770005448550,-150.0,0.00017178,2]
[404252513,1770005448560,-1500.0,0.000172,2]
[404252514,1770005448569,-245.72294872,0.00017229,2]
[404252515,1770005448580,-1398.55,0.00017236,2]
[404252516,1770005448590,-1000.0,0.0001726,2]
[404252517,1770005448599,-159.99157324,0.00017286,2]
[404252518,1770005448609,-5143.0,0.00017309,2]
[404252519,1770005448619,-151.0,0.00017321,2]
[404252520,1770005448629,-5143.0,0.00017321,2]
[404252521,1770005448639,-163.0,0.0001736,2]
[404252522,1770005448648,-175.0,0.0001737,2]
[404252523,1770005448658,-5143.0,0.00017401,2]
[404252524,1770005448667,-5143.0,0.00017401,2]
[404252525,1770005448678,-194.72792766,0.00017415,2]
[404252526,1770005448688,-1592.87721993,0.00017415,2]
[404252527,1770005448697,-233.51889341,0.00017415,2]
[404252528,1770005448707,-277.94807481,0.00017415,2]
[404252529,1770005448716,-233.51889341,0.00017415,2]
[404252530,1770005448726,-500.0,0.00017425,2]
[404252531,1770005448735,-1000.0,0.00017434,2]
[404252532,1770005448745,-16283.79473793,0.00017436,2]
[404252533,1770005448755,-15553.21923692,0.0001744,2]
[404252534,1770005448764,-348.13827783,0.00017461,2]
[404252535,1770005448775,-5888.0,0.00017472,2]
[404252536,1770005448785,-5143.0,0.00017489,2]
[404252537,1770005448794,-13442.50995431,0.000175,2]
[404252538,1770005448804,-151.0,0.000175,2]
[404252539,1770005448813,-233.557376,0.000175,2]
[404252540,1770005448823,-233.557376,0.000175,2]
[404252541,1770005448835,-233.557376,0.000175,2]
[404252542,1770005448845,-233.557376,0.000175,2]
[404252543,1770005448854,-2134.49,0.00017509,2]
[404252544,1770005448864,-20721.1863027,0.00017532,2]
[404252545,1770005448873,-1999.0,0.00017534,2]
[404252546,1770005448884,-179.48047234,0.00017537,2]
[404252547,1770005448893,-1899.6725397,0.00017557,2]
[404252548,1770005448904,-433.0,0.00017558,2]
[404252549,1770005448913,-164.61,0.00017583,2]
[404252550,1770005448923,-2580.0,0.00017601,2]
[404252551,1770005448933,-267.02,0.00017633,2]
[404252552,1770005448943,-2885.16125922,0.0001764,2]
[404252553,1770005448952,-502.76473862,0.00017664,2]
[404252554,1770005448962,-947.23523297,0.00017664,2]
[404252555,1770005448971,-1002.53462592,0.00017664,2]
[404252556,1770005448981,-1504.86417643,0.00017664,2]
[404252557,1770005448991,-1002.03881526,0.00017664,2]
[404252558,1770005449001,-1216.63993214,0.00017664,2]
[404252559,1770005449011,-164.60200181,0.00017667,2]
[404252560,1770005449022,-200.0,0.00017671,2]
[404252561,1770005449031,-1628.0,0.0001768,2]
[404252562,1770005449040,-163.0,0.0001768,2]
[404252563,1770005449049,-163.0,0.0001768,2]
[404252564,1770005449059,-5888.0,0.00017681,2]
[404252565,1770005449069,-3502.2507725,0.000177,2]
[404252566,1770005449078,-1000.0,0.00017709,2]
[404252567,1770005449088,-151.0,0.00017715,2]
[404252568,1770005449100,-220.52,0.00017735,2]
[404252569,1770005449110,-151.0,0.0001775,2]
[404252570,1770005449120,-200.0,0.00017751,2]
[404252571,1770005449130,-200.0,0.00017765,2]
[404252572,1770005449140,-151.0,0.00017768,2]
[404252573,1770005449150,-868.9,0.00017773,2]
[404252574,1770005449159,-220.52,0.0001779,2]
[404252575,1770005449170,-25000.0,0.00017803,3]
[404252576,1770005449179,-500.0,0.00017808,2]
[404252577,1770005449189,-1000.0,0.00017808,2]
[404252578,1770005449199,-25000.0,0.00017812,3]
[404252579,1770005449209,-2000.0,0.0001782,2]
[404252580,1770005449219,-2000.0,0.0001782,2]
[404252581,1770005449229,-2000.0,0.0001782,2]
[404252582,1770005449239,-2000.0,0.0001782,2]
[404252583,1770005449249,-25000.0,0.00017821,3]
[404252584,1770005449262,-25000.0,0.0001783,3]
[404252585,1770005449272,-25000.0,0.00017838,3]
[404252586,1770005449282,-220.52,0.00017845,2]
[404252587,1770005449291,-25000.0,0.00017847,3]
[404252588,1770005449301,-200.0,0.00017855,2]
[404252589,1770005449311,-200.0,0.00017856,2]
[404252590,1770005449321,-200.0,0.00017856,2]
[404252591,1770005449331,-25000.0,0.00017856,3]
[404252592,1770005449340,-1000.0,0.00017856,2]
[404252593,1770005449350,-1000.0,0.00017856,2]
[404252594,1770005449359,-1000.0,0.00017856,2]
[404252595,1770005449369,-1000.0,0.00017856,2]
[404252596,1770005449378,-1000.0,0.00017856,2]
[404252597,1770005449392,-1000.0,0.00017856,2]
[404252598,1770005449402,-1000.0,0.00017856,2]
[404252599,1770005449411,-433.0,0.00017858,2]
[404252600,1770005449421,-4670.0,0.0001786,2]
[404252601,1770005449430,-500.0,0.00017863,2]
[404252602,1770005449441,-25000.0,0.00017865,3]
[404252603,1770005449450,-151.0,0.00017865,2]
[404252604,1770005449460,-151.0,0.00017865,2]
[404252605,1770005449469,-25000.0,0.00017874,3]
[404252606,1770005449478,-25000.0,0.00017882,3]
[404252607,1770005449488,-25000.0,0.00017891,3]
[404252608,1770005449498,-8217.94244244,0.000179,3]
[404252609,1770005449510,-179.48047234,0.000179,2]
[404252610,1770005449520,-245.72294872,0.000179,2]
[404252611,1770005449529,-25000.0,0.000179,3]
[404252612,1770005449539,-167.82792388,0.000179,2]
[404252613,1770005449548,-15553.21923692,0.000179,2]
[404252614,1770005449558,-239.86447206,0.000179,2]
[404252615,1770005449567,-16283.79473793,0.000179,2]
[404252616,1770005449578,-5009.59871772,0.000179,2]
[404252617,1770005449587,-500.0,0.00017918,2]
[404252618,1770005449596,-4670.0,0.00017925,2]
[404252619,1770005449607,-5888.0,0.00017932,2]
[404252620,1770005449616,-5888.0,0.00017946,2]
[404252621,1770005449626,-773.23,0.00017954,2]
[404252622,1770005449636,-201.93286099,0.00017963,2]
[404252623,1770005449646,-1651.81367706,0.00017963,2]
[404252624,1770005449655,-242.15909246,0.00017963,2]
[404252625,1770005449664,-260.62456749,0.00017963,2]
[404252626,1770005449674,-291.0,0.0001797,2]
[404252627,1770005449683,-506.1208044,0.00017972,2]
[404252628,1770005449693,-166.0,0.0001799,3]
[404252629,1770005449702,-33863.48319073,0.0001799,3]
[404252630,1770005449711,-502.58606098,0.0001799,2]
[404252631,1770005449722,-150.0,0.00017999,2]
[404252632,1770005449731,-150.0,0.00017999,2]
[404252633,1770005449740,-150.0,0.00017999,2]
[404252634,1770005449749,-199.66269798,0.00017999,2]
[404252635,1770005449759,-300.0,0.00017999,2]
[404252636,1770005449768,-300.0,0.00017999,2]
[404252637,1770005449777,-666.0,0.00017999,2]
[404252638,1770005449787,-300.0,0.00017999,2]
[404252639,1770005449796,-670.83228666,0.00017999,2]
[404252640,1770005449805,-300.0,0.00017999,2]
[404252641,1770005449816,-300.0,0.00017999,2]
[404252642,1770005449827,-300.0,0.00017999,2]
[404252643,1770005449836,-666.0,0.00017999,2]
[404252644,1770005449846,-300.0,0.00017999,2]
[404252645,1770005449856,-300.0,0.00017999,2]
[404252646,1770005449870,-308.12898463,0.00017999,2]
[404252647,1770005449880,-251835.30798275,0.00018,2]
[404252648,1770005450490,-1424.0,0.00013898,2]
[404252649,1770005450500,-202.32116067,0.00015534,2]
[404252650,1770005450509,-802.49664852,0.00015534,2]
[404252651,1770005450519,-614.3,0.00017041,2]
[404252652,1770005450532,-2099.35349776,0.00018,2]
[404252653,1770005450610,-10874.55068768,0.00018,2]
[404252654,1770005450625,-18723.42802331,0.00018,2]
[404252655,1770005450636,-765.54,0.00018,2]
[404252656,1770005450691,-2950.5283474,0.00018,2]
[404252657,1770005450701,-9597.84302406,0.00018,2]
[404252659,1770005487987,250.0,0.00018,30]
[404252660,1770005488322,250.0,0.00018,30]
[404252668,1770006295641,3486.16,0.00012607,2]
[404252673,1770006410277,782.44195294,0.00015,14]
[404252676,1770006440531,200.0,0.00012593,2]
[404252681,1770006463837,6264.36362152,0.00013,15]
[404252682,1770006503752,38190.59202611,0.00015,3]
[404252684,1770006511339,-361.941323,0.00012864,2]
[404252685,1770006511366,-95.888677,0.00012929,2]
[404252692,1770006522950,1604.68,0.00011233,2]
[404252766,1770006632272,-204.111323,0.00012929,2]
[404252769,1770006632283,-157.83,0.00012978,2]
[404252772,1770006632295,-300.0,0.00013159,2]
[404252779,1770006632593,-153.29012916,0.00013159,2]
[404252780,1770006632604,-1200.0,0.00013308,2]
[404252781,1770006632614,-1200.0,0.00013308,2]
[404252783,1770006632623,-300.0,0.00013308,2]
[404252785,1770006632633,-8249.9861723,0.00013309,2]
[404252787,1770006632643,-150.0,0.00013319,2]
[404252788,1770006632653,-228.39919254,0.0001332,2]
[404252790,1770006632662,-1335.24073345,0.0001332,2]
[404252792,1770006632674,-2783.31516655,0.0001332,2]
[404252794,1770006632684,-2571.15159257,0.0001332,2]
[404252796,1770006632696,-748.84260743,0.0001332,2]
[404252798,1770006632705,-237.2858,0.0001332,2]
[404252800,1770006632716,-19753.85891238,0.0001332,2]
[404252802,1770006632727,-239.86447206,0.0001332,2]
[404252804,1770006632736,-150.0,0.00013338,2]
[404252805,1770006632746,-200.0,0.00013338,2]
[404252806,1770006632755,-200.0,0.00013338,2]
[404252808,1770006632765,-500.0,0.00013338,2]
[404252810,1770006632775,-500.0,0.00013338,2]
[404252812,1770006632784,-200.0,0.00013345,2]
[404252814,1770006632794,-150.0,0.00013393,2]
[404252815,1770006632804,-500.0,0.00013393,2]
[404252816,1770006632814,-500.0,0.00013393,2]
[404252817,1770006632823,-509.57470144,0.0001341,2]
[404252818,1770006632833,-706.71498953,0.0001341,2]
[404252819,1770006632843,-500.0,0.00013419,2]
[404252820,1770006632852,-266.05523605,0.00013419,2]
[404252821,1770006632861,-500.0,0.00013419,2]
[404252822,1770006632871,-454.05062926,0.00013419,2]
[404252823,1770006632880,-500.0,0.00013419,2]
[404252824,1770006632889,-500.0,0.00013419,2]
[404252825,1770006632899,-500.0,0.00013419,2]
[404252826,1770006632908,-500.0,0.00013419,2]
[404252827,1770006632918,-500.0,0.00013419,2]
[404252828,1770006632928,-500.0,0.00013419,2]
[404252829,1770006632937,-500.0,0.00013419,2]
[404252830,1770006632946,-500.0,0.00013419,2]
[404252831,1770006632956,-83.75265185,0.00013419,2]
[404252832,1770006632968,-416.24734815,0.00013419,2]
[404252833,1770006632977,-153.7962703,0.00013419,2]
[404252834,1770006632986,-500.0,0.00013419,2]
[404252835,1770006632996,-370.6751958,0.00013419,2]
[404252836,1770006633008,-129.3248042,0.00013419,2]
[404252837,1770006633017,-344.8781308,0.00013419,2]
[404252838,1770006633033,-155.1218692,0.00013419,2]
[404252839,1770006633042,-500.0,0.00013419,2]
[404252840,1770006633054,-500.0,0.00013419,2]
[404252841,1770006633064,-500.0,0.00013419,2]
[404252842,1770006633074,-500.0,0.00013419,2]
[404252843,1770006633083,-500.0,0.00013419,2]
[404252844,1770006633093,-4.12397966,0.00013419,2]
[404252845,1770006633104,-495.87602034,0.00013419,2]
[404252846,1770006633113,-117.01411223,0.00013419,2]
[404252847,1770006633125,-382.98588777,0.00013419,2]
[404252848,1770006633135,-500.0,0.00013419,2]
[404252849,1770006633144,-500.0,0.00013419,2]
[404252850,1770006633154,-500.0,0.00013419,2]
[404252851,1770006633163,-500.0,0.00013419,2]
[404252852,1770006633172,-500.0,0.00013419,2]
[404252853,1770006633182,-500.0,0.00013419,2]
[404252854,1770006633191,-500.0,0.00013419,2]
[404252855,1770006633200,-500.0,0.00013419,2]
[404252856,1770006633209,-500.0,0.00013419,2]
[404252857,1770006633218,-500.0,0.00013419,2]
[404252858,1770006633227,-500.0,0.00013419,2]
[404252859,1770006633237,-500.0,0.00013419,2]
[404252860,1770006633246,-500.0,0.00013419,2]
[404252861,1770006633256,-500.0,0.00013419,2]
[404252862,1770006633266,-500.0,0.00013419,2]
[404252863,1770006633276,-500.0,0.00013419,2]
[404252864,1770006633285,-500.0,0.00013419,2]
[404252865,1770006633294,-500.0,0.00013419,2]
[404252866,1770006633305,-500.0,0.00013419,2]
[404252867,1770006633315,-500.0,0.00013419,2]
[404252868,1770006633327,-500.0,0.00013419,2]
[404252869,1770006633337,-500.0,0.00013419,2]
[404252870,1770006633347,-500.0,0.00013419,2]
[404252871,1770006633356,-500.0,0.00013419,2]
[404252872,1770006633367,-500.0,0.00013419,2]
[404252873,1770006633376,-500.0,0.00013419,2]
[404252874,1770006633386,-500.0,0.00013419,2]
[404252875,1770006633396,-500.0,0.00013419,2]
[404252876,1770006633406,-173.34148019,0.00013419,2]
[404252877,1770006633419,-219.57767572,0.00013419,2]
[404252878,1770006633429,-500.0,0.00013419,2]
[404252879,1770006633439,-208.11856136,0.00013419,2]
[404252880,1770006633452,-291.88143864,0.00013419,2]
[404252881,1770006633462,-500.0,0.00013419,2]
[404252882,1770006633472,-500.0,0.00013419,2]
[404252883,1770006633483,-500.0,0.00013419,2]
[404252884,1770006633492,-500.0,0.00013419,2]
[404252885,1770006633502,-500.0,0.00013419,2]
[404252886,1770006633512,-500.0,0.00013419,2]
[404252887,1770006633523,-500.0,0.00013419,2]
[404252888,1770006633533,-500.0,0.00013419,2]
[404252889,1770006633543,-500.0,0.00013419,2]
[404252890,1770006633553,-500.0,0.00013419,2]
[404252891,1770006633562,-500.0,0.00013419,2]
[404252892,1770006633571,-500.0,0.00013419,2]
[404252893,1770006633581,-500.0,0.00013419,2]
[404252894,1770006633590,-500.0,0.00013419,2]
[404252895,1770006633600,-500.0,0.00013419,2]
[404252896,1770006633609,-500.0,0.00013419,2]
[404252897,1770006633618,-386.16148946,0.00013419,2]
[404252898,1770006633628,-500.0,0.00013419,2]
[404252899,1770006633638,-500.0,0.00013419,2]
[404252900,1770006633647,-500.0,0.00013419,2]
[404252901,1770006633657,-500.0,0.00013419,2]
[404252902,1770006633666,-500.0,0.00013419,2]
[404252903,1770006633676,-500.0,0.00013419,2]
[404252904,1770006633686,-500.0,0.00013419,2]
[404252905,1770006633695,-500.0,0.00013419,2]
[404252906,1770006633705,-500.0,0.00013419,2]
[404252907,1770006633714,-500.0,0.00013419,2]
[404252908,1770006633723,-500.0,0.00013419,2]
[404252909,1770006633733,-500.0,0.00013419,2]
[404252910,1770006633742,-500.0,0.00013419,2]
[404252911,1770006633752,-500.0,0.00013419,2]
[404252912,1770006633761,-500.0,0.00013419,2]
[404252913,1770006633770,-319.30727295,0.00013419,2]
[404252914,1770006633783,-397.57029763,0.00013419,2]
[404252915,1770006633792,-422.97961592,0.00013419,2]
[404252916,1770006633804,-293.89795466,0.00013419,2]
[404252917,1770006633813,-716.87757058,0.00013419,2]
[404252918,1770006633823,-595.95174634,0.00013419,2]
[404252919,1770006633834,-120.92582422,0.00013419,2]
[404252920,1770006633843,-3502.39715573,0.0001342,2]
[404252921,1770006633854,-1998.50742485,0.0001342,2]
[404252922,1770006633865,-4158.62726896,0.0001342,2]
[404252923,1770006633876,-18821.43254382,0.0001342,2]
[404252924,1770006633887,-12979.42691393,0.0001342,2]
[404252925,1770006633903,-265.84703492,0.0001342,2]
[404252929,1770006638341,-8984.54281752,0.0001342,2]
[404252930,1770006638569,-29346.80758099,0.0001342,2]
[404252938,1770006640356,-765.44534152,0.00012929,2]
[404252939,1770006640368,-234.55465848,0.00012929,2]
[404252940,1770006640378,-2098.44534152,0.0001342,2]
[404252941,1770006640389,-48570.15285295,0.0001342,2]
[404252942,1770006640471,-555.18000004,0.0001342,2]
[404252943,1770006640483,-1147.455,0.0001342,2]
[404252944,1770006640495,-8882.70071977,0.0001342,2]
[404252945,1770006640506,-25310.6751925,0.0001342,2]
[404252946,1770006640596,-252.636388,0.0001342,2]
[404252947,1770006640640,-2733125.1657645,0.0001342,2]
[404252948,1770006640649,-2471.8202,0.0001342,2]
[404252949,1770006640659,-200.0,0.00013448,2]
[404252950,1770006640668,-500.0,0.00013448,2]
[404252951,1770006640678,-500.0,0.00013448,2]
[404252952,1770006640687,-293.0506095,0.00013463,2]
[404252953,1770006640696,-164.0,0.00013473,2]
[404252954,1770006640705,-295.36,0.000135,2]
[404252955,1770006640714,-500.0,0.00013502,2]
[404252956,1770006640723,-500.0,0.00013502,2]
[404252957,1770006640733,-1667.59464096,0.0001352,2]
[404252958,1770006640742,-274.64819743,0.00013527,2]
[404252959,1770006640752,-479.387,0.00013527,2]
[404252960,1770006640761,-7805.66,0.0001354,2]
[404252961,1770006640776,-500.0,0.00013557,2]
[404252962,1770006640786,-500.0,0.00013557,2]
[404252963,1770006640796,-5456.35939945,0.00013598,2]
[404252964,1770006640811,-500.0,0.00013612,2]
[404252966,1770006640820,-500.0,0.00013612,2]
[404252967,1770006640830,-500.0,0.00013612,2]
[404252969,1770006640840,-500.0,0.00013612,2]
[404252970,1770006640850,-500.0,0.00013612,2]
[404252971,1770006640860,-500.0,0.00013612,2]
[404252972,1770006640870,-151.0,0.00013612,2]
[404252973,1770006640880,-500.0,0.00013612,2]
[404252975,1770006640890,-151.0,0.00013612,2]
[404252976,1770006640900,-500.0,0.00013612,2]
[404252977,1770006640910,-151.0,0.00013612,2]
[404252978,1770006640920,-500.0,0.00013612,2]
[404252979,1770006640930,-151.0,0.00013612,2]
[404252980,1770006640939,-500.0,0.00013612,2]
[404252981,1770006640949,-151.0,0.00013612,2]
[404252982,1770006640959,-500.0,0.00013612,2]
[404252983,1770006640968,-151.0,0.00013612,2]
[404252984,1770006640978,-151.0,0.00013612,2]
[404252985,1770006640987,-151.0,0.00013612,2]
[404252986,1770006640997,-151.0,0.00013612,2]
[404252987,1770006641006,-500.0,0.00013612,2]
[404252988,1770006641016,-151.0,0.00013612,2]
[404252989,1770006641026,-151.0,0.00013612,2]
[404252990,1770006641036,-500.0,0.00013612,2]
[404252991,1770006641045,-500.0,0.00013612,2]
[404252992,1770006641060,-500.0,0.00013612,2]
[404252993,1770006641069,-500.0,0.00013612,2]
[404252994,1770006641079,-500.0,0.00013612,2]
[404252995,1770006641088,-500.0,0.00013612,2]
[404252996,1770006641097,-500.0,0.00013612,2]
[404252997,1770006641106,-500.0,0.00013612,2]
[404252998,1770006641115,-500.0,0.00013612,2]
[404252999,1770006641125,-151.13386207,0.00013612,2]
[404253000,1770006641135,-500.0,0.00013612,2]
[404253001,1770006641149,-309.28369003,0.00013667,2]
[404253002,1770006641159,-586.19962979,0.00013698,2]
[404253003,1770006641169,-500.0,0.00013698,2]
[404253004,1770006641179,-500.0,0.00013698,2]
[404253005,1770006641190,-500.0,0.00013698,2]
[404253006,1770006641200,-500.0,0.00013698,2]
[404253007,1770006641210,-500.0,0.00013698,2]
[404253008,1770006641220,-365.11189625,0.00013698,2]
[404253009,1770006641230,-500.0,0.00013698,2]
[404253010,1770006641239,-500.0,0.00013698,2]
[404253011,1770006641249,-500.0,0.00013698,2]
[404253012,1770006641258,-500.0,0.00013698,2]
[404253013,1770006641268,-509.63945804,0.00013698,2]
[404253014,1770006641277,-500.0,0.00013698,2]
[404253015,1770006641287,-500.0,0.00013698,2]
[404253016,1770006641297,-500.0,0.00013698,2]
[404253017,1770006641311,-500.0,0.00013698,2]
[404253018,1770006641321,-504.58121564,0.00013698,2]
[404253019,1770006641331,-500.0,0.00013698,2]
[404253020,1770006641341,-500.0,0.00013698,2]
[404253021,1770006641351,-500.0,0.00013698,2]
[404253022,1770006641361,-500.0,0.00013698,2]
[404253023,1770006641370,-512.55184272,0.00013698,2]
[404253024,1770006641381,-500.0,0.00013698,2]
[404253025,1770006641391,-500.0,0.00013698,2]
[404253026,1770006641400,-500.0,0.00013698,2]
[404253027,1770006641410,-500.0,0.00013698,2]
[404253028,1770006641420,-502.21564045,0.00013698,2]
[404253029,1770006641430,-500.0,0.00013698,2]
[404253030,1770006641439,-500.0,0.00013698,2]
[404253031,1770006641450,-500.0,0.00013698,2]
[404253032,1770006641462,-500.0,0.00013698,2]
[404253033,1770006641472,-193.34712914,0.00013698,2]
[404253034,1770006641482,-500.0,0.00013698,2]
[404253035,1770006641492,-500.0,0.00013698,2]
[404253036,1770006641503,-500.0,0.00013698,2]
[404253037,1770006641517,-636.97,0.00013698,2]
[404253038,1770006641529,-500.0,0.00013698,2]
[404253039,1770006641539,-208.77047208,0.00013698,2]
[404253040,1770006641549,-500.0,0.00013698,2]
[404253041,1770006641560,-500.0,0.00013698,2]
[404253042,1770006641570,-500.0,0.00013698,2]
[404253043,1770006641580,-500.0,0.00013698,2]
[404253044,1770006641589,-500.0,0.00013698,2]
[404253045,1770006641599,-508.51455349,0.00013698,2]
[404253046,1770006641609,-500.0,0.00013698,2]
[404253047,1770006641619,-500.0,0.00013698,2]
[404253048,1770006641628,-500.0,0.00013698,2]
[404253049,1770006641638,-500.0,0.00013698,2]
[404253050,1770006641647,-500.0,0.00013698,2]
[404253051,1770006641657,-500.0,0.00013698,2]
[404253052,1770006641667,-500.0,0.00013698,2]
[404253053,1770006641676,-500.0,0.00013698,2]
[404253054,1770006641686,-500.0,0.00013698,2]
[404253055,1770006641695,-500.0,0.00013698,2]
[404253056,1770006641705,-500.0,0.00013698,2]
[404253057,1770006641715,-409.78,0.00013698,2]
[404253058,1770006641725,-500.0,0.00013698,2]
[404253059,1770006641735,-500.0,0.00013698,2]
[404253060,1770006641745,-500.0,0.00013698,2]
[404253061,1770006641755,-500.0,0.00013698,2]
[404253062,1770006641765,-500.0,0.00013698,2]
[404253063,1770006641774,-500.0,0.00013698,2]
[404253064,1770006641784,-508.9071214,0.00013698,2]
[404253065,1770006641793,-500.0,0.00013698,2]
[404253066,1770006641807,-500.0,0.00013698,2]
[404253067,1770006641816,-500.0,0.00013698,2]
[404253068,1770006641826,-500.0,0.00013698,2]
[404253069,1770006641835,-500.0,0.00013698,2]
[404253070,1770006641845,-500.0,0.00013698,2]
[404253071,1770006641855,-500.0,0.00013698,2]
[404253072,1770006641864,-581.80646883,0.00013698,2]
[404253073,1770006641873,-345.62119018,0.00013698,2]
[404253074,1770006641883,-327.30466151,0.00013698,2]
[404253075,1770006641896,-500.0,0.00013698,2]
[404253076,1770006641905,-500.0,0.00013698,2]
[404253077,1770006641915,-500.0,0.00013698,2]
[404253078,1770006641924,-500.0,0.00013698,2]
[404253079,1770006641934,-500.0,0.00013698,2]
[404253080,1770006641943,-500.0,0.00013698,2]
[404253081,1770006641952,-500.0,0.00013698,2]
[404253082,1770006641962,-500.0,0.00013698,2]
[404253083,1770006641971,-500.0,0.00013698,2]
[404253084,1770006641981,-500.0,0.00013698,2]
[404253085,1770006641991,-500.0,0.00013698,2]
[404253086,1770006642000,-502.51921833,0.00013698,2]
[404253087,1770006642009,-528.1929044,0.00013698,2]
[404253088,1770006642019,-500.0,0.00013698,2]
[404253089,1770006642028,-500.0,0.00013698,2]
[404253090,1770006642038,-500.0,0.00013698,2]
[404253091,1770006642048,-500.0,0.00013698,2]
[404253092,1770006642060,-500.0,0.00013698,2]
[404253093,1770006642069,-500.0,0.00013698,2]
[404253094,1770006642081,-500.0,0.00013698,2]
[404253095,1770006642091,-500.0,0.00013698,2]
[404253096,1770006642350,-500.0,0.00013698,2]
[404253097,1770006642360,-500.0,0.00013698,2]
[404253098,1770006642371,-500.0,0.00013698,2]
[404253099,1770006642380,-500.0,0.00013698,2]
[404253100,1770006642390,-500.0,0.00013698,2]
[404253101,1770006642399,-500.0,0.00013698,2]
[404253102,1770006642409,-500.0,0.00013698,2]
[404253103,1770006642419,-500.0,0.00013698,2]
[404253104,1770006642428,-500.0,0.00013698,2]
[404253105,1770006642438,-500.0,0.00013698,2]
[404253106,1770006642449,-500.0,0.00013698,2]
[404253107,1770006642461,-500.0,0.00013698,2]
[404253108,1770006642471,-244.52182497,0.00013698,2]
[404253109,1770006642480,-200.0,0.00013699,2]
[404253110,1770006642491,-15490.27,0.000137,2]
[404253111,1770006642501,-15490.27,0.000137,2]
[404253112,1770006642510,-21565.8311,0.00013727,2]
[404253113,1770006642520,-1000.0,0.00013727,2]
[404253114,1770006642530,-541.5046,0.00013728,2]
[404253115,1770006642540,-19753.85891229,0.00013824,2]
[404253116,1770006642550,-157.83,0.00013905,2]
[404253117,1770006642563,-500.0,0.00013967,2]
[404253118,1770006642573,-170.36367963,0.00013973,2]
[404253119,1770006642583,-500.60243683,0.00013973,2]
[404253120,1770006642592,-500.0,0.00013973,2]
[404253121,1770006642601,-446.80882298,0.00013973,2]
[404253122,1770006642611,-500.0,0.00013973,2]
[404253123,1770006642620,-500.0,0.00013973,2]
[404253124,1770006642630,-164.70227396,0.00013973,2]
[404253125,1770006642639,-169.47739756,0.00013973,2]
[404253126,1770006642648,-500.35121489,0.00013973,2]